[Event "Early-Titled-Tuesday-Blitz-October-03-2023"]
[Site "Chess.com"]
[Date "2023.10.03"]
[Round "1"]
[White "Air-Conditioner07"]
[Black "NovozhilovSemen"]
[Result "0-1"]
[WhiteElo "2231"]
[BlackElo "2587"]
[TimeControl "180+1"]
[EndTime "8:05:28 PDT"]
[Termination "NovozhilovSemen won by resignation"]

1. e4 {[%clk 0:03:00.9]} 1... c5 {[%clk 0:02:58.4]} 2. Nf3 {[%clk 0:02:59.9]}
2... Nc6 {[%clk 0:02:58.4]} 3. Bb5 {[%clk 0:02:59.7]} 3... g6 {[%clk 0:02:58.3]}
4. O-O {[%clk 0:02:57.6]} 4... Bg7 {[%clk 0:02:58.2]} 5. Re1 {[%clk 0:02:53.4]}
5... Nf6 {[%clk 0:02:56.4]} 6. c3 {[%clk 0:02:48.5]} 6... O-O {[%clk 0:02:55.7]}
7. d4 {[%clk 0:02:46.2]} 7... d5 {[%clk 0:02:55.3]} 8. e5 {[%clk 0:02:39.2]}
8... Ne4 {[%clk 0:02:54.9]} 9. Nbd2 {[%clk 0:02:31.4]} 9... Bf5 {[%clk
0:02:40.4]} 10. Bxc6 {[%clk 0:02:23.5]} 10... bxc6 {[%clk 0:02:39.3]} 11. Nh4
{[%clk 0:02:18.9]} 11... e6 {[%clk 0:02:33.9]} 12. Nxf5 {[%clk 0:02:10.9]} 12...
exf5 {[%clk 0:02:34.8]} 13. Nxe4 {[%clk 0:01:56.1]} 13... dxe4 {[%clk
0:02:29.9]} 14. Qa4 {[%clk 0:01:19]} 14... cxd4 {[%clk 0:02:06.3]} 15. cxd4
{[%clk 0:01:17.2]} 15... c5 {[%clk 0:02:06.5]} 16. dxc5 {[%clk 0:00:45.2]} 16...
Bxe5 {[%clk 0:02:04.2]} 17. Bh6 {[%clk 0:00:38.9]} 17... Re8 {[%clk 0:02:04]}
18. h3 {[%clk 0:00:15.5]} 18... Bxb2 {[%clk 0:02:02.7]} 19. Rad1 {[%clk
0:00:14.9]} 19... Qc7 {[%clk 0:02:02.6]} 20. c6 {[%clk 0:00:14.7]} 20... Rad8
{[%clk 0:01:59.9]} 21. Bg5 {[%clk 0:00:14.5]} 21... Rc8 {[%clk 0:01:51.3]} 22.
Rd7 {[%clk 0:00:13.1]} 22... Qxc6 {[%clk 0:01:50.9]} 23. Qxa7 {[%clk 0:00:13.7]}
23... Ra8 {[%clk 0:01:45.8]} 24. Qc7 {[%clk 0:00:10]} 24... Qxc7 {[%clk
0:01:45.9]} 25. Rxc7 {[%clk 0:00:09.7]} 25... Rxa2 {[%clk 0:01:46.3]} 26. Rd1
{[%clk 0:00:09.4]} 26... Bg7 {[%clk 0:01:45]} 27. Rdd7 {[%clk 0:00:09.4]} 27...
Ra1+ {[%clk 0:01:44.9]} 0-1

[Event "Early-Titled-Tuesday-Blitz-October-03-2023"]
[Site "Chess.com"]
[Date "2023.10.03"]
[Round "1"]
[White "Grossboss19"]
[Black "Duhless"]
[Result "0-1"]
[WhiteElo "2506"]
[BlackElo "2978"]
[TimeControl "180+1"]
[EndTime "8:05:33 PDT"]
[Termination "Duhless won by resignation"]

1. d4 {[%clk 0:03:00.4]} 1... Nf6 {[%clk 0:03:00]} 2. c4 {[%clk 0:02:59.8]} 2...
e6 {[%clk 0:02:58.8]} 3. Nc3 {[%clk 0:02:58.9]} 3... Bb4 {[%clk 0:02:58.5]} 4.
e3 {[%clk 0:02:58.8]} 4... d5 {[%clk 0:02:58.5]} 5. Bd3 {[%clk 0:02:57.2]} 5...
O-O {[%clk 0:02:57.9]} 6. Nf3 {[%clk 0:02:57.1]} 6... c5 {[%clk 0:02:55.9]} 7.
O-O {[%clk 0:02:54.4]} 7... Nc6 {[%clk 0:02:53.9]} 8. a3 {[%clk 0:02:49.7]} 8...
Bxc3 {[%clk 0:02:53.9]} 9. bxc3 {[%clk 0:02:49.1]} 9... dxc4 {[%clk 0:02:54.1]}
10. Bxc4 {[%clk 0:02:48.8]} 10... Qc7 {[%clk 0:02:55]} 11. Ba2 {[%clk
0:02:44.8]} 11... b6 {[%clk 0:02:54.8]} 12. Qc2 {[%clk 0:02:37.5]} 12... Ba6
{[%clk 0:02:51.9]} 13. Rd1 {[%clk 0:02:36.7]} 13... Rac8 {[%clk 0:02:51.2]} 14.
Bb2 {[%clk 0:02:33.1]} 14... cxd4 {[%clk 0:02:48.1]} 15. cxd4 {[%clk 0:02:08.2]}
15... Nxd4 {[%clk 0:02:46.6]} 16. Qxc7 {[%clk 0:02:08.3]} 16... Ne2+ {[%clk
0:02:39.8]} 17. Kh1 {[%clk 0:02:07.9]} 17... Rxc7 {[%clk 0:02:40.7]} 18. Nd4
{[%clk 0:02:00.2]} 18... Ne4 {[%clk 0:02:31.5]} 19. Rf1 {[%clk 0:01:37.5]} 19...
Nxd4 {[%clk 0:02:29.2]} 20. Bxd4 {[%clk 0:01:38.4]} 20... Bxf1 {[%clk
0:02:29.6]} 21. Rxf1 {[%clk 0:01:39.3]} 21... Rc2 {[%clk 0:02:29.4]} 22. Bb1
{[%clk 0:01:39.2]} 22... Rxf2 {[%clk 0:02:28.9]} 23. Rc1 {[%clk 0:01:37.5]}
23... f5 {[%clk 0:02:19.2]} 24. h4 {[%clk 0:01:30.9]} 24... h5 {[%clk
0:02:03.9]} 25. Bd3 {[%clk 0:01:18.7]} 25... Rd2 {[%clk 0:01:50.5]} 26. Bc4
{[%clk 0:01:16.9]} 26... Kf7 {[%clk 0:01:49.7]} 27. Bb3 {[%clk 0:01:11]} 27...
Re8 {[%clk 0:01:44.4]} 28. Rc7+ {[%clk 0:01:05.7]} 28... Re7 {[%clk 0:01:42.9]}
29. Rc8 {[%clk 0:01:06.1]} 29... Nc5 {[%clk 0:01:34.6]} 30. Bc4 {[%clk 0:01:02]}
30... Rc2 {[%clk 0:01:32.2]} 31. Bb5 {[%clk 0:00:55.4]} 31... e5 {[%clk
0:01:27.2]} 32. Bxc5 {[%clk 0:00:50.3]} 32... Rxc5 {[%clk 0:01:26.7]} 33. Bc4+
{[%clk 0:00:50.4]} 33... Kg6 {[%clk 0:01:25.4]} 34. Rxc5 {[%clk 0:00:47.3]}
34... bxc5 {[%clk 0:01:25.8]} 35. Kg1 {[%clk 0:00:44.2]} 35... Kf6 {[%clk
0:01:25.1]} 0-1

[Event "Early-Titled-Tuesday-Blitz-October-03-2023"]
[Site "Chess.com"]
[Date "2023.10.03"]
[Round "1"]
[White "ejam94"]
[Black "Denis_Makhnyov"]
[Result "0-1"]
[WhiteElo "2503"]
[BlackElo "2947"]
[TimeControl "180+1"]
[EndTime "8:05:33 PDT"]
[Termination "Denis_Makhnyov won by checkmate"]

1. e4 {[%clk 0:02:57.3]} 1... e5 {[%clk 0:02:59.9]} 2. Nf3 {[%clk 0:02:57.1]}
2... Nc6 {[%clk 0:03:00.5]} 3. Bb5 {[%clk 0:02:57.6]} 3... a6 {[%clk 0:02:58.7]}
4. Ba4 {[%clk 0:02:57.2]} 4... Nf6 {[%clk 0:02:59]} 5. O-O {[%clk 0:02:56.5]}
5... Be7 {[%clk 0:02:58]} 6. Bxc6 {[%clk 0:02:56.2]} 6... dxc6 {[%clk
0:02:57.8]} 7. d3 {[%clk 0:02:56.3]} 7... Nd7 {[%clk 0:02:53.8]} 8. Nbd2 {[%clk
0:02:56.5]} 8... O-O {[%clk 0:02:51]} 9. Nc4 {[%clk 0:02:56.8]} 9... f6 {[%clk
0:02:51.2]} 10. Nh4 {[%clk 0:02:57.1]} 10... Nc5 {[%clk 0:02:36]} 11. Nf5 {[%clk
0:02:56.9]} 11... Bxf5 {[%clk 0:02:31.3]} 12. exf5 {[%clk 0:02:57.8]} 12... Qd5
{[%clk 0:02:32]} 13. Qg4 {[%clk 0:02:57.5]} 13... Rfe8 {[%clk 0:02:28.9]} 14.
Be3 {[%clk 0:02:57.1]} 14... e4 {[%clk 0:02:22.2]} 15. Rad1 {[%clk 0:02:06.1]}
15... exd3 {[%clk 0:02:20.2]} 16. Bxc5 {[%clk 0:02:04.8]} 16... Bxc5 {[%clk
0:02:20.2]} 17. Rxd3 {[%clk 0:02:03.6]} 17... Qe4 {[%clk 0:02:16.9]} 18. Qxe4
{[%clk 0:01:47.3]} 18... Rxe4 {[%clk 0:02:17.8]} 19. Ne3 {[%clk 0:01:41.2]}
19... Rae8 {[%clk 0:01:22.7]} 20. Rd7 {[%clk 0:01:09.4]} 20... R8e7 {[%clk
0:01:22.5]} 21. Rfd1 {[%clk 0:01:00.9]} 21... Bxe3 {[%clk 0:01:17.6]} 22. Rd8+
{[%clk 0:00:44.2]} 22... Kf7 {[%clk 0:01:15.1]} 23. fxe3 {[%clk 0:00:44.5]}
23... Rxe3 {[%clk 0:01:11.5]} 24. R1d2 {[%clk 0:00:41.7]} 24... R3e5 {[%clk
0:01:06.8]} 25. Rh8 {[%clk 0:00:35.3]} 25... Rxf5 {[%clk 0:01:06.1]} 26. Rxh7
{[%clk 0:00:35.6]} 26... Re1# {[%clk 0:01:06]} 0-1

[Event "Early-Titled-Tuesday-Blitz-October-03-2023"]
[Site "Chess.com"]
[Date "2023.10.03"]
[Round "1"]
[White "Gyulamiryan-koryun"]
[Black "Aslanov_Umid"]
[Result "0-1"]
[WhiteElo "1992"]
[BlackElo "2526"]
[TimeControl "180+1"]
[EndTime "8:05:33 PDT"]
[Termination "Aslanov_Umid won by checkmate"]

1. e4 {[%clk 0:00:57.5]} 1... c5 {[%clk 0:02:59.4]} 2. Nf3 {[%clk 0:00:57]} 2...
d6 {[%clk 0:02:59.6]} 3. d4 {[%clk 0:00:57.2]} 3... cxd4 {[%clk 0:03:00.5]} 4.
Nxd4 {[%clk 0:00:57.8]} 4... Nf6 {[%clk 0:03:01.1]} 5. Nc3 {[%clk 0:00:58.2]}
5... a6 {[%clk 0:03:01.6]} 6. Be3 {[%clk 0:00:58.6]} 6... e5 {[%clk 0:03:01.9]}
7. Nb3 {[%clk 0:00:56.7]} 7... Be7 {[%clk 0:03:02.5]} 8. Bc4 {[%clk 0:00:56.6]}
8... O-O {[%clk 0:03:01.2]} 9. O-O {[%clk 0:00:56.1]} 9... Be6 {[%clk
0:03:01.7]} 10. Bxe6 {[%clk 0:00:55.3]} 10... fxe6 {[%clk 0:03:02.6]} 11. f4
{[%clk 0:00:55.5]} 11... Nc6 {[%clk 0:03:00.2]} 12. f5 {[%clk 0:00:55.2]} 12...
exf5 {[%clk 0:03:00]} 13. Rxf5 {[%clk 0:00:55.9]} 13... Rc8 {[%clk 0:02:51.8]}
14. Bg5 {[%clk 0:00:55.9]} 14... Qd7 {[%clk 0:02:48.3]} 15. Bxf6 {[%clk
0:00:56]} 15... Rxf6 {[%clk 0:02:47.3]} 16. Rxf6 {[%clk 0:00:55.7]} 16... Bxf6
{[%clk 0:02:48.2]} 17. Nd5 {[%clk 0:00:55.2]} 17... Rf8 {[%clk 0:02:44]} 18. Qd2
{[%clk 0:00:52.3]} 18... Qg4 {[%clk 0:02:38.6]} 19. Qe3 {[%clk 0:00:49.2]} 19...
Bg5 {[%clk 0:02:36.5]} 20. Qd3 {[%clk 0:00:45.1]} 20... b5 {[%clk 0:02:02.7]}
21. h3 {[%clk 0:00:44.7]} 21... Qe6 {[%clk 0:01:59.6]} 22. Rf1 {[%clk
0:00:42.2]} 22... Rxf1+ {[%clk 0:01:59.1]} 23. Qxf1 {[%clk 0:00:42.5]} 23... Nd4
{[%clk 0:01:57.8]} 24. Nxd4 {[%clk 0:00:41]} 24... exd4 {[%clk 0:01:58.7]} 25.
Qd3 {[%clk 0:00:41]} 25... Qe5 {[%clk 0:01:55.7]} 26. Nc7 {[%clk 0:00:36.3]}
26... Be3+ {[%clk 0:01:55.4]} 27. Kh1 {[%clk 0:00:35.3]} 27... Qg3 {[%clk
0:01:28]} 28. Qb3+ {[%clk 0:00:34.4]} 28... Kh8 {[%clk 0:01:28.5]} 29. Qf7
{[%clk 0:00:30.4]} 29... Qe1+ {[%clk 0:01:28.8]} 30. Kh2 {[%clk 0:00:30.6]}
30... Bg1+ {[%clk 0:01:29.6]} 31. Kh1 {[%clk 0:00:27.4]} 31... Bf2+ {[%clk
0:01:30.5]} 32. Kh2 {[%clk 0:00:26.5]} 32... Qg1# {[%clk 0:01:31.4]} 0-1

[Event "Early-Titled-Tuesday-Blitz-October-03-2023"]
[Site "Chess.com"]
[Date "2023.10.03"]
[Round "1"]
[White "djano"]
[Black "Francisco_Ferrari"]
[Result "1-0"]
[WhiteElo "2659"]
[BlackElo "2360"]
[TimeControl "180+1"]
[EndTime "8:05:36 PDT"]
[Termination "djano won by resignation"]

1. d4 {[%clk 0:03:00.9]} 1... d5 {[%clk 0:02:56.6]} 2. Bf4 {[%clk 0:03:01]} 2...
Nf6 {[%clk 0:02:56.3]} 3. Nf3 {[%clk 0:03:00.2]} 3... e6 {[%clk 0:02:56.9]} 4.
e3 {[%clk 0:03:00.5]} 4... Bd6 {[%clk 0:02:57.6]} 5. Bg3 {[%clk 0:03:01]} 5...
O-O {[%clk 0:02:57.3]} 6. Nbd2 {[%clk 0:03:01]} 6... b6 {[%clk 0:02:53.1]} 7. c4
{[%clk 0:02:55.3]} 7... c5 {[%clk 0:02:46.5]} 8. dxc5 {[%clk 0:02:49]} 8... bxc5
{[%clk 0:02:34.2]} 9. Be2 {[%clk 0:02:47.9]} 9... Nc6 {[%clk 0:02:33.3]} 10. O-O
{[%clk 0:02:46.6]} 10... d4 {[%clk 0:02:25.3]} 11. exd4 {[%clk 0:02:40.8]} 11...
cxd4 {[%clk 0:02:26.2]} 12. Bh4 {[%clk 0:02:30.1]} 12... e5 {[%clk 0:02:17.5]}
13. c5 {[%clk 0:02:22.6]} 13... Be7 {[%clk 0:02:06.8]} 14. Bd3 {[%clk
0:02:13.5]} 14... Nd5 {[%clk 0:01:55.7]} 15. Bxe7 {[%clk 0:02:09.8]} 15... Qxe7
{[%clk 0:01:56.6]} 16. Re1 {[%clk 0:02:08.8]} 16... Bg4 {[%clk 0:01:41.7]} 17.
Qa4 {[%clk 0:02:06.1]} 17... Rac8 {[%clk 0:01:22.3]} 18. Nxe5 {[%clk 0:01:49.4]}
18... Nxe5 {[%clk 0:01:18.1]} 19. Qxd4 {[%clk 0:01:49.6]} 19... Qxc5 {[%clk
0:01:01.6]} 20. Qxc5 {[%clk 0:01:45.2]} 20... Rxc5 {[%clk 0:01:02.5]} 21. Rxe5
{[%clk 0:01:45.2]} 21... Be6 {[%clk 0:00:58.7]} 22. Ne4 {[%clk 0:01:36.4]} 22...
Rc7 {[%clk 0:00:55.4]} 23. Ng5 {[%clk 0:01:31.6]} 23... g6 {[%clk 0:00:40.9]}
24. Rxe6 {[%clk 0:01:17.8]} 24... fxe6 {[%clk 0:00:41.8]} 25. Nxe6 {[%clk
0:01:18.3]} 25... Rb7 {[%clk 0:00:16.5]} 1-0

[Event "Early-Titled-Tuesday-Blitz-October-03-2023"]
[Site "Chess.com"]
[Date "2023.10.03"]
[Round "1"]
[White "DanyKopy"]
[Black "Alenzer"]
[Result "1-0"]
[WhiteElo "2537"]
[BlackElo "2107"]
[TimeControl "180+1"]
[EndTime "8:05:36 PDT"]
[Termination "DanyKopy won on time"]

1. d4 {[%clk 0:02:53.3]} 1... d5 {[%clk 0:02:57.7]} 2. c4 {[%clk 0:02:51.5]}
2... dxc4 {[%clk 0:02:57.7]} 3. Nf3 {[%clk 0:02:51.5]} 3... e6 {[%clk
0:02:57.9]} 4. e3 {[%clk 0:02:52]} 4... Nf6 {[%clk 0:02:57.7]} 5. Bxc4 {[%clk
0:02:52.5]} 5... a6 {[%clk 0:02:57.2]} 6. O-O {[%clk 0:02:52.4]} 6... b5 {[%clk
0:02:56.2]} 7. Be2 {[%clk 0:02:46.2]} 7... c5 {[%clk 0:02:56.3]} 8. a4 {[%clk
0:02:45.1]} 8... b4 {[%clk 0:02:38.3]} 9. Nbd2 {[%clk 0:02:42.1]} 9... Be7
{[%clk 0:02:31.4]} 10. Nc4 {[%clk 0:02:35.9]} 10... O-O {[%clk 0:02:28]} 11. b3
{[%clk 0:02:30.3]} 11... Nc6 {[%clk 0:02:25.4]} 12. Bb2 {[%clk 0:02:28.7]} 12...
Bb7 {[%clk 0:02:16]} 13. Rc1 {[%clk 0:02:25.3]} 13... cxd4 {[%clk 0:02:06.3]}
14. Nxd4 {[%clk 0:02:22.7]} 14... Nxd4 {[%clk 0:01:59.5]} 15. Qxd4 {[%clk
0:02:20.9]} 15... Qd5 {[%clk 0:01:53.2]} 16. Qxd5 {[%clk 0:02:06]} 16... Nxd5
{[%clk 0:01:54.1]} 17. Na5 {[%clk 0:02:04.8]} 17... Bc8 {[%clk 0:01:29.2]} 18.
Bf3 {[%clk 0:02:02.3]} 18... Bd7 {[%clk 0:01:22.5]} 19. Bxd5 {[%clk 0:01:56.9]}
19... exd5 {[%clk 0:01:15.9]} 20. Rc7 {[%clk 0:01:56.1]} 20... Rfd8 {[%clk
0:00:44.5]} 21. Nb7 {[%clk 0:01:54.1]} 21... Bf5 {[%clk 0:00:34.6]} 22. Nxd8
{[%clk 0:01:49.1]} 22... Bxd8 {[%clk 0:00:34.4]} 23. Rc5 {[%clk 0:01:44.5]}
23... Be6 {[%clk 0:00:16.6]} 24. Bd4 {[%clk 0:01:41.3]} 24... Be7 {[%clk
0:00:11]} 25. Rc7 {[%clk 0:01:36.5]} 25... Bd6 {[%clk 0:00:02]} 26. Rc6 {[%clk
0:01:36.6]} 1-0

[Event "Early-Titled-Tuesday-Blitz-October-03-2023"]
[Site "Chess.com"]
[Date "2023.10.03"]
[Round "1"]
[White "HrvojeZagreb"]
[Black "crazy_but_lazy"]
[Result "0-1"]
[WhiteElo "2307"]
[BlackElo "2623"]
[TimeControl "180+1"]
[EndTime "8:05:42 PDT"]
[Termination "crazy_but_lazy won by resignation"]

1. d4 {[%clk 0:02:57.8]} 1... d5 {[%clk 0:02:56.9]} 2. Bf4 {[%clk 0:02:56.9]}
2... c6 {[%clk 0:02:54]} 3. e3 {[%clk 0:02:56]} 3... Qb6 {[%clk 0:02:52.1]} 4.
Nd2 {[%clk 0:02:50.7]} 4... Nf6 {[%clk 0:02:47.8]} 5. c4 {[%clk 0:02:49.4]} 5...
Qxb2 {[%clk 0:02:47.8]} 6. Ngf3 {[%clk 0:02:45.6]} 6... Bf5 {[%clk 0:02:34.8]}
7. Qc1 {[%clk 0:02:13.6]} 7... Qxc1+ {[%clk 0:02:32.5]} 8. Rxc1 {[%clk
0:02:14.5]} 8... e6 {[%clk 0:02:32.7]} 9. Ne5 {[%clk 0:02:07.8]} 9... Nbd7
{[%clk 0:02:27.9]} 10. Be2 {[%clk 0:02:06.6]} 10... Bb4 {[%clk 0:02:25.1]} 11.
f3 {[%clk 0:02:02.1]} 11... h6 {[%clk 0:01:36.3]} 12. g4 {[%clk 0:01:45.1]}
12... Bh7 {[%clk 0:01:34.5]} 13. h4 {[%clk 0:01:32]} 13... Rc8 {[%clk
0:01:17.9]} 14. g5 {[%clk 0:01:21.5]} 14... Nh5 {[%clk 0:01:18.2]} 15. Bh2
{[%clk 0:01:20.9]} 15... hxg5 {[%clk 0:01:17.6]} 16. hxg5 {[%clk 0:01:18.6]}
16... Bf5 {[%clk 0:01:18]} 17. Bg3 {[%clk 0:01:05.8]} 17... Ke7 {[%clk
0:01:11.2]} 18. Nxd7 {[%clk 0:00:58.5]} 18... Nxg3 {[%clk 0:01:01.3]} 19. Rg1
{[%clk 0:00:20.6]} 19... Nxe2 {[%clk 0:00:57.5]} 20. Kxe2 {[%clk 0:00:17.2]}
20... Rh2+ {[%clk 0:00:57.5]} 0-1

[Event "Early-Titled-Tuesday-Blitz-October-03-2023"]
[Site "Chess.com"]
[Date "2023.10.03"]
[Round "1"]
[White "Chessdreamer2020"]
[Black "Dewarfd"]
[Result "1-0"]
[WhiteElo "2537"]
[BlackElo "2121"]
[TimeControl "180+1"]
[EndTime "8:05:42 PDT"]
[Termination "Chessdreamer2020 won on time"]

1. e4 {[%clk 0:03:00]} 1... e5 {[%clk 0:03:00]} 2. Nf3 {[%clk 0:03:00.2]} 2...
Nc6 {[%clk 0:03:00]} 3. Be2 {[%clk 0:02:57.6]} 3... Nf6 {[%clk 0:03:00]} 4. d3
{[%clk 0:02:57.7]} 4... h6 {[%clk 0:02:55.2]} 5. O-O {[%clk 0:02:57.9]} 5... Be7
{[%clk 0:02:53.6]} 6. Nbd2 {[%clk 0:02:58.1]} 6... O-O {[%clk 0:02:53.4]} 7. c3
{[%clk 0:02:58.6]} 7... d6 {[%clk 0:02:53.2]} 8. b4 {[%clk 0:02:57]} 8... a6
{[%clk 0:02:52.1]} 9. a3 {[%clk 0:02:57.3]} 9... Bg4 {[%clk 0:02:50.1]} 10. h3
{[%clk 0:02:56.9]} 10... Be6 {[%clk 0:02:48.4]} 11. Re1 {[%clk 0:02:57]} 11...
Re8 {[%clk 0:02:48.2]} 12. Qc2 {[%clk 0:02:56.4]} 12... Nb8 {[%clk 0:02:47.4]}
13. d4 {[%clk 0:02:55.4]} 13... exd4 {[%clk 0:02:40.3]} 14. cxd4 {[%clk
0:02:56.3]} 14... c6 {[%clk 0:02:40.5]} 15. Bf1 {[%clk 0:02:52.6]} 15... Qc7
{[%clk 0:02:40.2]} 16. Nc4 {[%clk 0:02:52.1]} 16... Nbd7 {[%clk 0:02:24.4]} 17.
Bf4 {[%clk 0:02:51.5]} 17... Nh5 {[%clk 0:02:22.3]} 18. Bh2 {[%clk 0:02:51.2]}
18... Rac8 {[%clk 0:02:13.5]} 19. Rac1 {[%clk 0:02:49.6]} 19... Bf8 {[%clk
0:01:55.5]} 20. Qd2 {[%clk 0:02:47.2]} 20... Nhf6 {[%clk 0:01:50.3]} 21. Qf4
{[%clk 0:02:38.2]} 21... Nh5 {[%clk 0:01:44]} 22. Qh4 {[%clk 0:02:36.5]} 22...
Nhf6 {[%clk 0:01:37.1]} 23. Bd3 {[%clk 0:02:35.5]} 23... Be7 {[%clk 0:01:35.6]}
24. Qf4 {[%clk 0:02:32.8]} 24... Nh5 {[%clk 0:01:32.2]} 25. Qd2 {[%clk
0:02:32.8]} 25... Nhf6 {[%clk 0:01:32.9]} 26. Bb1 {[%clk 0:02:32.8]} 26... Rcd8
{[%clk 0:01:25.9]} 27. Qd3 {[%clk 0:02:32.8]} 27... g6 {[%clk 0:01:25.9]} 28.
Qd2 {[%clk 0:02:14.6]} 28... Kh7 {[%clk 0:01:22.2]} 29. Bf4 {[%clk 0:02:06.5]}
29... Nf8 {[%clk 0:01:20]} 30. Bxh6 {[%clk 0:02:05.2]} 30... d5 {[%clk
0:01:10.2]} 31. Bf4 {[%clk 0:01:52.5]} 1-0

[Event "Early-Titled-Tuesday-Blitz-October-03-2023"]
[Site "Chess.com"]
[Date "2023.10.03"]
[Round "1"]
[White "GradualismUnleashed"]
[Black "IsuruAlahakoon"]
[Result "1-0"]
[WhiteElo "2618"]
[BlackElo "2296"]
[TimeControl "180+1"]
[EndTime "8:05:43 PDT"]
[Termination "GradualismUnleashed won by resignation"]

1. e4 {[%clk 0:03:00.9]} 1... d5 {[%clk 0:02:58.5]} 2. exd5 {[%clk 0:03:00.6]}
2... Qxd5 {[%clk 0:02:55.1]} 3. Nc3 {[%clk 0:03:00.6]} 3... Qa5 {[%clk
0:02:54.6]} 4. d4 {[%clk 0:03:01.2]} 4... Nf6 {[%clk 0:02:51]} 5. Nf3 {[%clk
0:03:00.6]} 5... Bg4 {[%clk 0:02:50.6]} 6. h3 {[%clk 0:02:58.2]} 6... Bh5 {[%clk
0:02:50.1]} 7. g4 {[%clk 0:02:58.4]} 7... Bg6 {[%clk 0:02:50.6]} 8. Ne5 {[%clk
0:02:58.7]} 8... e6 {[%clk 0:02:51.3]} 9. Bg2 {[%clk 0:02:58.4]} 9... c6 {[%clk
0:02:51.2]} 10. Bd2 {[%clk 0:02:55.8]} 10... Nbd7 {[%clk 0:02:44.3]} 11. Qe2
{[%clk 0:02:55.3]} 11... Bb4 {[%clk 0:02:40.3]} 12. a3 {[%clk 0:02:51.3]} 12...
Nxe5 {[%clk 0:02:38.4]} 13. dxe5 {[%clk 0:02:50.5]} 13... Nd5 {[%clk 0:02:38.3]}
14. Nxd5 {[%clk 0:02:41]} 14... cxd5 {[%clk 0:02:39.2]} 15. Bxb4 {[%clk
0:02:40.5]} 15... Qc7 {[%clk 0:02:16]} 16. O-O {[%clk 0:02:29.4]} 16... Qxc2
{[%clk 0:02:08.1]} 17. Qxc2 {[%clk 0:02:27.5]} 17... Bxc2 {[%clk 0:02:07.3]} 18.
Rac1 {[%clk 0:02:28.4]} 18... Ba4 {[%clk 0:02:04.6]} 19. f4 {[%clk 0:02:26.9]}
19... h5 {[%clk 0:01:55.2]} 20. f5 {[%clk 0:02:20.2]} 20... hxg4 {[%clk
0:01:54.4]} 21. hxg4 {[%clk 0:02:20.4]} 21... Rh4 {[%clk 0:01:47]} 22. Bf3
{[%clk 0:02:19.7]} 22... a5 {[%clk 0:01:32.4]} 23. Bd6 {[%clk 0:02:18.9]} 23...
Bc6 {[%clk 0:01:24.8]} 24. Kg2 {[%clk 0:02:13.2]} 24... Kd7 {[%clk 0:01:22.1]}
25. Kg3 {[%clk 0:02:13.2]} 25... Rah8 {[%clk 0:01:22.2]} 26. Rh1 {[%clk
0:02:10.2]} 26... Rxh1 {[%clk 0:01:12.5]} 27. Rxh1 {[%clk 0:02:11.1]} 27... Rxh1
{[%clk 0:01:12.7]} 28. Bxh1 {[%clk 0:02:12]} 28... Bb5 {[%clk 0:01:04]} 29. Kf4
{[%clk 0:02:09.8]} 29... Bd3 {[%clk 0:01:00.7]} 30. Bf3 {[%clk 0:02:08.2]} 30...
f6 {[%clk 0:00:58.1]} 31. Bd1 {[%clk 0:02:01.7]} 31... b5 {[%clk 0:00:53.3]} 32.
Bb3 {[%clk 0:01:54.9]} 32... g5+ {[%clk 0:00:45.1]} 33. fxg6 {[%clk 0:01:54.2]}
33... Bxg6 {[%clk 0:00:44.8]} 34. Bc5 {[%clk 0:01:49.1]} 34... fxe5+ {[%clk
0:00:43.1]} 35. Kxe5 {[%clk 0:01:50]} 35... Bd3 {[%clk 0:00:26.5]} 36. g5 {[%clk
0:01:49.6]} 36... Bg6 {[%clk 0:00:24]} 37. Bd1 {[%clk 0:01:49.5]} 37... Bf5
{[%clk 0:00:20.2]} 38. Bh5 {[%clk 0:01:49]} 1-0

[Event "Early-Titled-Tuesday-Blitz-October-03-2023"]
[Site "Chess.com"]
[Date "2023.10.03"]
[Round "1"]
[White "ariosp"]
[Black "lefonghua"]
[Result "0-1"]
[WhiteElo "2235"]
[BlackElo "2586"]
[TimeControl "180+1"]
[EndTime "8:05:45 PDT"]
[Termination "lefonghua won by resignation"]

1. e4 {[%clk 0:02:46.4]} 1... c5 {[%clk 0:02:59.8]} 2. Nf3 {[%clk 0:02:44.9]}
2... g6 {[%clk 0:03:00]} 3. d4 {[%clk 0:02:44.4]} 3... cxd4 {[%clk 0:03:00.9]}
4. Nxd4 {[%clk 0:02:44.6]} 4... Bg7 {[%clk 0:03:01.3]} 5. Nc3 {[%clk 0:02:44.7]}
5... Nc6 {[%clk 0:03:01.6]} 6. Be3 {[%clk 0:02:43.7]} 6... Nf6 {[%clk
0:03:01.9]} 7. Bc4 {[%clk 0:02:43.5]} 7... Qa5 {[%clk 0:03:02.2]} 8. O-O {[%clk
0:02:40.1]} 8... O-O {[%clk 0:03:02.3]} 9. Bb3 {[%clk 0:02:38]} 9... d6 {[%clk
0:03:00.4]} 10. h3 {[%clk 0:02:23.8]} 10... Bd7 {[%clk 0:02:58.3]} 11. Qd2
{[%clk 0:02:17.1]} 11... Nxd4 {[%clk 0:02:53.6]} 12. Bxd4 {[%clk 0:02:15.8]}
12... Bc6 {[%clk 0:02:54]} 13. Rfe1 {[%clk 0:02:10.7]} 13... Rfc8 {[%clk
0:02:43.5]} 14. e5 {[%clk 0:02:04.9]} 14... dxe5 {[%clk 0:02:41.1]} 15. Rxe5
{[%clk 0:02:04.5]} 15... Qc7 {[%clk 0:02:39]} 16. Rae1 {[%clk 0:02:01.5]} 16...
e6 {[%clk 0:02:31.1]} 17. Rxe6 {[%clk 0:01:48.1]} 17... fxe6 {[%clk 0:02:26.6]}
18. Rxe6 {[%clk 0:01:47.8]} 18... Kh8 {[%clk 0:02:25.7]} 19. Rxf6 {[%clk
0:01:47.1]} 19... Rd8 {[%clk 0:01:47]} 20. Rf4 {[%clk 0:01:35.9]} 20... Rxd4
{[%clk 0:01:27.4]} 21. Rxd4 {[%clk 0:01:34.8]} 21... Bxd4 {[%clk 0:01:28.3]} 22.
Qxd4+ {[%clk 0:01:34.2]} 22... Qg7 {[%clk 0:01:29]} 23. Qc5 {[%clk 0:01:03.6]}
23... Re8 {[%clk 0:01:25.3]} 24. f4 {[%clk 0:00:47.9]} 24... Qd7 {[%clk
0:01:11.3]} 25. Qxa7 {[%clk 0:00:38.5]} 25... Qd2 {[%clk 0:00:57.7]} 0-1